bitfinex/quotes_ETHUSD_20250323
["timestamp","ask_amount","ask_price","bid_price","bid_amount"]
[1742733024547,12.19049087,2014.2,2013.8,5.4092]
[1742733024743,4.22573087,2014.2,2013.8,5.55157234]
[1742733024941,3.43513087,2014.2,2013.8,10.51728234]
[1742733025142,3.43513087,2014.2,2013.8,10.51719234]
[1742733026258,8.39999087,2014.2,2013.8,5.55157234]
[1742733028854,5.79359,2014.1,2013.8,4.79037234]
[1742733029025,4.96524,2014.0,2013.8,4.79037234]
[1742733029636,4.96524,2014.0,2013.8,0.14237234]
[1742733029847,6.290604,2013.9,2013.8,0.14237234]
[1742733033272,9.72573487,2013.9,2013.8,0.14237234]
[1742733034471,9.22921087,2013.9,2013.8,0.14237234]
[1742733036841,9.22921087,2013.9,2013.4,4.648]
[1742733037042,9.22921087,2013.9,2013.5,0.14338975]
[1742733037774,3.43513087,2013.9,2013.6,5.7913]
[1742733038151,3.43513087,2013.9,2013.7,5.108781]
[1742733038654,3.43513087,2013.9,2013.7,0.142811]
[1742733038976,3.43513087,2013.9,2013.6,5.7913]
[1742733039280,3.43513087,2013.9,2013.7,0.142811]
[1742733039484,3.43513087,2013.9,2013.6,0.8251]
[1742733039774,3.43513087,2013.9,2013.8,0.14256237]
[1742733039983,3.43513087,2013.9,2013.7,0.142811]
[1742733040272,3.43513087,2013.9,2013.8,0.14256237]
[1742733040465,3.43513087,2013.9,2013.6,0.8251]
[1742733040662,3.43513087,2013.9,2013.8,0.14256237]
[1742733040867,3.43513087,2013.9,2013.6,0.8251]
[1742733041068,3.43513087,2013.9,2013.8,0.14256237]
[1742733041383,3.43513087,2013.9,2013.6,0.8251]
[1742733041546,3.43513087,2013.9,2013.8,0.14256237]
[1742733041747,3.43513087,2013.9,2013.6,0.8251]
[1742733041979,3.43513087,2013.9,2013.8,0.14256237]
[1742733042158,3.43513087,2013.9,2013.7,0.142811]
[1742733042362,3.43513087,2013.9,2013.8,0.14256237]
[1742733042759,3.43513087,2013.9,2013.6,0.8251]
[1742733042958,3.43513087,2013.9,2013.8,0.14269796]
[1742733043159,3.43513087,2013.9,2013.7,0.14294659]
[1742733043360,3.43513087,2013.9,2013.8,0.14269796]
[1742733044079,3.43513087,2013.9,2013.6,0.8251]
[1742733044252,3.43513087,2013.9,2013.8,0.14269796]
[1742733044453,3.43513087,2013.9,2013.6,0.8251]
[1742733044652,3.43513087,2013.9,2013.8,0.14269796]
[1742733044883,3.43513087,2013.9,2013.6,0.8251]
[1742733045176,3.43513087,2013.9,2013.8,0.14269796]
[1742733045378,5.79393,2013.8,2013.7,0.14294659]
[1742733045580,5.79393,2013.8,2013.4,4.648]
[1742733045758,10.75984,2013.8,2013.3,31.22496]
[1742733045959,5.79393,2013.8,2013.3,35.87296]
[1742733050480,10.75988,2013.8,2013.3,30.906]
[1742733050664,14.19501087,2013.8,2013.3,30.906]
[1742733051388,9.22906087,2013.8,2013.3,35.87296]
[1742733051784,9.22906087,2013.8,2013.3,30.906]
[1742733052280,10.1900629,2013.8,2013.3,30.906]
[1742733052488,4.96607,2013.7,2013.3,30.906]
[1742733054170,0.8042,2013.6,2013.3,30.906]
[1742733058088,0.8042,2013.6,2013.3,35.87296]
[1742733058675,0.8042,2013.6,2013.4,0.14393685]
[1742733061796,5.77053,2013.6,2013.4,0.14393685]
[1742733064870,6.38349609,2013.6,2013.4,0.14393685]
[1742733065097,0.8207,2013.5,2013.4,0.14393685]
[1742733065298,0.8207,2013.5,2013.2,4.648]
[1742733065513,4.25583087,2013.5,2013.4,0.13241764]
[1742733065694,4.96672,2013.4,2013.3,0.13266637]
[1742733065873,4.96672,2013.4,2013.1,26.261]
[1742733065874,4.9671,2013.3,2013.1,26.261]
[1742733066222,9.93427,2013.3,2013.1,26.261]
[1742733066416,4.96721,2013.2,2013.1,26.261]
[1742733066574,5.78791,2013.2,2013.1,26.261]
[1742733067102,0.8207,2013.2,2013.1,26.261]
[1742733067503,5.78791,2013.2,2013.1,26.261]
[1742733068408,7.20692409,2013.2,2013.1,26.261]
[1742733068615,4.96773,2013.0,2012.7,4.648]
[1742733068775,0.8207,2012.9,2012.7,4.648]
[1742733072189,5.78821,2013.1,2012.7,4.648]
[1742733072808,10.75585,2013.1,2012.7,4.648]
[1742733072974,12.35503852,2013.1,2012.7,4.648]
[1742733073706,12.35503852,2013.1,2012.8,0.12494016]
[1742733074223,10.82252939,2013.1,2012.8,0.12494016]
[1742733075038,15.79016939,2013.1,2012.8,0.12494016]
[1742733075845,4.96773,2013.0,2012.8,0.12494016]
[1742733076930,4.96795,2012.9,2012.8,0.12494016]
[1742733077103,10.76339,2012.9,2012.6,4.648]
[1742733077305,10.76339,2012.9,2012.8,0.12494016]
[1742733077503,10.76339,2012.9,2012.7,0.12518903]
[1742733077504,5.79525,2012.9,2012.7,0.12518903]
[1742733077714,4.96829,2012.8,2012.5,30.91]
[1742733078762,9.93671,2012.8,2012.5,30.91]
[1742733078945,4.96829,2012.8,2012.5,30.91]
[1742733079105,9.93667,2012.8,2012.5,30.91]
[1742733080072,4.96829,2012.8,2012.5,30.91]
[1742733082851,5.79529,2012.9,2012.5,9.6169]
[1742733084637,4.96821,2012.8,2012.5,4.648]
[1742733085468,9.93659,2012.8,2012.5,4.648]
[1742733085766,4.96821,2012.8,2012.5,4.648]
[1742733086563,9.93659,2012.8,2012.5,4.648]
[1742733086764,4.96845,2012.7,2012.5,4.648]
[1742733087261,4.96821,2012.8,2012.5,4.648]
[1742733087570,4.96821,2012.8,2012.5,9.61689]
[1742733088067,4.96846,2012.7,2012.5,4.648]
[1742733088755,4.96846,2012.7,2012.6,0.12739268]
[1742733092684,4.96821,2012.8,2012.6,0.12739268]
[1742733094359,5.79526,2012.9,2012.7,0.781]
[1742733094360,4.968,2012.9,2012.7,0.781]
[1742733094679,4.968,2012.9,2012.8,0.12689491]
[1742733096294,4.968,2012.9,2012.5,15.36665]
[1742733096446,4.968,2012.9,2012.8,0.12689491]
[1742733096648,6.30508609,2012.9,2012.5,10.39777]
[1742733096846,4.968,2012.9,2012.6,0.12739268]
[1742733105003,3.43513087,2013.0,2012.7,4.96826]
[1742733105374,3.43513087,2013.0,2012.8,0.12708497]
[1742733106418,8.40284087,2013.0,2012.8,0.12708497]
[1742733107610,8.40284087,2013.0,2012.6,4.96862]
[1742733107776,8.40284087,2013.0,2012.9,0.12659171]
[1742733107976,9.99911439,2013.0,2012.6,4.96862]
[1742733108178,8.40284087,2013.0,2012.9,0.12659171]
[1742733108390,8.40284087,2013.0,2012.6,4.96862]
[1742733109013,8.40284087,2013.0,2012.7,0.12708944]
[1742733109405,13.37073087,2013.0,2012.6,4.96862]
[1742733109575,13.37073087,2013.0,2012.8,0.12684056]
[1742733109777,14.96703439,2013.0,2012.7,0.12708944]
[1742733110110,13.37072087,2013.0,2012.8,0.12684056]
[1742733110478,13.37072087,2013.0,2012.6,4.96862]
[1742733110679,13.37072087,2013.0,2012.7,0.12708944]
[1742733110891,13.37072087,2013.0,2012.6,4.96862]
[1742733111090,13.37072087,2013.0,2012.8,0.12684056]
[1742733111417,13.37072087,2013.0,2012.6,4.96862]
[1742733111597,13.37072087,2013.0,2012.9,0.12659171]
[1742733111921,14.96702339,2013.0,2012.9,0.12659171]
[1742733112117,14.96702339,2013.0,2012.6,4.96862]
[1742733112319,13.37072087,2013.0,2012.9,0.12659171]
[1742733112476,13.37072087,2013.0,2012.6,4.96862]
[1742733112679,13.37072087,2013.0,2012.7,0.12708944]
[1742733112881,13.37072087,2013.0,2012.6,4.96862]
[1742733113106,13.37072087,2013.0,2012.7,0.12687219]
[1742733113521,13.37072087,2013.0,2012.6,4.96862]
[1742733113726,13.37072087,2013.0,2012.8,0.12662331]
[1742733113899,14.96702339,2013.0,2012.7,0.12687219]
[1742733114102,13.37072087,2013.0,2012.6,4.96862]
[1742733114300,13.37072087,2013.0,2012.7,0.12687219]
[1742733114500,13.37072087,2013.0,2012.6,4.96862]
[1742733114702,13.37072087,2013.0,2012.5,10.39794]
[1742733114703,4.96795,2012.9,2012.7,0.12687219]
[1742733114897,4.9683,2012.8,2012.5,4.648]
[1742733115103,4.9683,2012.8,2012.6,0.12712109]
[1742733116223,5.76685,2012.9,2012.6,0.12712109]
[1742733116431,8.40289087,2013.0,2012.6,5.09573109]
[1742733116590,13.37077087,2013.0,2012.6,5.09573109]
[1742733117226,8.40289087,2013.0,2012.6,5.09573109]
[1742733117430,8.40289087,2013.0,2012.6,0.12712109]
[1742733118337,4.96797,2012.9,2012.6,0.12712109]
[1742733122929,4.96831,2012.8,2012.6,0.12712109]
[1742733123234,5.73535,2012.7,2012.6,0.12712109]
[1742733123436,9.17048087,2012.7,2012.6,0.12712109]
[1742733123616,4.96894,2012.5,2012.4,26.272]
[1742733123999,5.73584,2012.5,2012.4,26.272]
[1742733124926,11.08949383,2012.5,2012.4,26.272]
[1742733125231,4.96968,2012.2,2012.1,4.647]
[1742733125726,5.73658,2012.2,2012.1,4.647]
[1742733125934,0.7669,2012.2,2011.8,27.0724]
[1742733126117,4.97042,2011.9,2011.8,30.918]
[1742733127426,4.97042,2011.9,2011.8,26.271]
[1742733132654,6.8315432,2011.9,2011.8,26.271]
[1742733133205,9.17245087,2011.9,2011.8,26.271]
[1742733133400,9.17245087,2011.9,2011.4,4.648]
[1742733133401,4.97156,2011.5,2011.4,4.648]
[1742733133623,3.43513087,2011.7,2011.4,4.648]
[1742733133807,3.43513087,2011.7,2011.5,0.85111266]
[1742733134007,3.43513087,2011.7,2011.5,0.8014]
[1742733134335,3.43513087,2011.7,2011.6,0.13496366]
[1742733138821,5.04753391,2011.9,2011.6,0.89116366]
[1742733140043,0.07709391,2011.9,2011.6,5.86230366]
[1742733140251,0.07709391,2011.9,2011.6,0.13496366]
[1742733140546,8.40432087,2012.4,2012.0,5.72628]
[1742733140846,4.96889,2012.6,2012.2,5.72578]
[1742733141013,4.96889,2012.6,2012.2,5.72577]
[1742733141209,4.96849,2012.7,2012.3,5.10238705]
[1742733148939,4.96849,2012.7,2012.3,10.07165705]
[1742733149141,4.96849,2012.7,2012.3,5.10232705]
[1742733149653,4.96849,2012.7,2012.3,10.07158705]
[1742733150352,4.96849,2012.7,2012.4,4.96918]
[1742733150652,4.96849,2012.7,2012.5,4.648]
[1742733150854,4.96849,2012.7,2012.5,4.77762436]
[1742733152541,9.22558087,2012.8,2012.5,4.77762436]
[1742733153047,3.43513087,2013.1,2012.8,0.7747]
[1742733153430,3.43513087,2013.5,2012.9,9.79272299]
[1742733153618,4.96685,2013.4,2013.0,0.7747]
[1742733153935,8.40161087,2013.5,2013.1,0.1272076]
[1742733154137,8.40161087,2013.5,2013.1,5.0946076]
[1742733154138,4.65461196,2013.5,2013.1,5.0946076]
[1742733154368,3.43513087,2013.5,2013.1,5.0945476]
[1742733154717,3.43513087,2013.5,2013.2,10.70882]
[1742733154912,3.43513087,2013.5,2013.3,4.7728411]
[1742733155226,8.40093087,2013.8,2013.3,14.75623523]
[1742733155428,8.40094087,2013.8,2013.4,4.96669]
[1742733155740,8.40094087,2013.8,2013.5,0.12534367]
[1742733155920,3.43513087,2013.8,2013.6,0.7747]
[1742733156122,3.43513087,2013.8,2013.7,0.12484634]
[1742733156321,3.43513087,2013.8,2013.7,4.647]
[1742733156562,3.43513087,2013.8,2013.7,4.7706791]
[1742733156722,3.43513087,2013.8,2013.7,9.7366591]
[1742733157051,3.43513087,2014.1,2013.7,9.7366591]
[1742733157249,8.40023087,2014.1,2013.7,9.7366591]
[1742733157548,8.40023087,2014.1,2013.7,4.7706791]
[1742733157549,4.96531,2014.0,2013.7,4.7706791]
[1742733158449,4.96566,2013.9,2013.7,4.7706791]
[1742733158754,4.96573,2013.8,2013.7,4.7706791]
[1742733164149,9.19399087,2013.9,2013.7,4.7706791]
[1742733165445,4.96573,2013.8,2013.7,4.7706791]
[1742733166375,9.19399087,2013.9,2013.7,4.7706791]
[1742733166678,3.43513087,2013.9,2013.7,4.7706791]
[1742733166864,3.43513087,2013.9,2013.7,10.4976791]
[1742733167070,3.43513087,2013.9,2013.7,5.5318791]
[1742733167485,3.43513087,2013.9,2013.7,15.5132127]
[1742733167666,3.43513087,2013.9,2013.8,4.96573]
[1742733167980,3.43513087,2014.2,2013.8,5.08573982]
[1742733168184,3.43513087,2014.2,2013.9,4.96548]
[1742733168675,3.43513087,2014.2,2014.0,0.87061263]
[1742733168856,7.96452,2014.3,2014.0,0.87061263]
[1742733169455,8.39945087,2014.4,2014.0,5.83579263]
[1742733170479,4.96452,2014.3,2014.0,0.87061263]
[1742733170848,4.96475,2014.2,2014.1,4.644]
[1742733171176,4.96475,2014.2,2014.1,4.76326408]
[1742733179391,7.60251809,2014.2,2014.1,4.76326408]
[1742733180307,10.60251809,2014.2,2014.1,0.11926408]
[1742733180809,4.96548,2013.9,2013.8,4.643]
[1742733183198,4.96545,2014.0,2013.8,4.643]
[1742733184981,4.96573,2013.8,2013.7,26.257]
[1742733185497,4.96598,2013.7,2013.6,4.643]
[1742733185905,4.96625,2013.6,2013.4,27.0427]
[1742733186105,9.93216,2013.7,2013.5,4.643]
[1742733186310,4.96598,2013.7,2013.5,4.643]
[1742733186812,9.93216,2013.7,2013.5,4.643]
[1742733187118,4.96622,2013.6,2013.4,31.6857]
[1742733189715,4.96622,2013.6,2013.5,0.003718]
[1742733190522,5.73072,2013.6,2013.5,0.003718]
[1742733190720,7.24470873,2013.6,2013.5,0.003718]
[1742733190883,10.24470873,2013.6,2013.5,0.003718]
[1742733193193,13.6798396,2013.6,2013.5,0.003718]
[1742733194290,11.40135087,2013.6,2013.5,0.003718]
[1742733195328,11.40135087,2013.6,2013.5,0.11537053]
[1742733196429,7.96622,2013.6,2013.5,0.11537053]
[1742733198419,0.7634,2014.0,2013.6,0.793]
[1742733198619,4.96563,2013.9,2013.6,0.793]
[1742733198820,7.96563,2013.9,2013.7,4.7551552]
[1742733198995,4.96563,2013.9,2013.7,4.7551552]
[1742733199203,4.96525,2014.0,2013.7,4.7551552]
[1742733199204,9.93069,2014.0,2013.7,4.7551552]
[1742733199624,4.9655,2013.9,2013.7,4.7551552]
[1742733207339,9.93118,2013.9,2013.7,4.7551552]
[1742733209315,4.9655,2013.9,2013.7,4.7551552]
[1742733211042,9.93068,2014.0,2013.7,4.7551552]
[1742733211419,4.96524,2014.0,2013.7,4.7551552]
[1742733211944,4.96506,2014.1,2013.7,4.7551552]
[1742733212146,3.43513087,2014.2,2013.8,5.76943]
[1742733212444,8.39991087,2014.2,2013.9,0.10979115]
[1742733212615,3.43513087,2014.2,2013.9,0.10979115]
[1742733212950,3.43513087,2014.2,2013.9,5.76929]
[1742733213251,4.96452,2014.3,2014.0,0.10954257]
[1742733213551,4.96452,2014.3,2014.1,4.643]
[1742733213900,4.96431,2014.4,2014.2,0.10904549]
[1742733214305,9.92875,2014.4,2014.2,0.10904549]
[1742733214520,4.96431,2014.4,2014.2,0.10904549]
[1742733215443,4.9645,2014.3,2014.2,0.10904549]
[1742733219045,4.96431,2014.4,2014.2,0.10904549]
[1742733220227,4.96431,2014.4,2014.2,0.91294549]
[1742733220836,8.39919087,2014.5,2014.2,0.91294549]
[1742733222235,10.14382091,2014.8,2014.3,4.9645]
[1742733222570,14.13032087,2014.8,2014.3,4.9645]
[1742733222748,14.13032087,2014.8,2014.4,0.10627385]
[1742733222949,14.13032087,2014.8,2014.5,4.642]
[1742733223174,4.96353,2014.7,2014.6,0.10577696]
[1742733223959,9.16677087,2014.8,2014.6,0.10577696]
[1742733225164,4.96351,2014.7,2014.6,0.10577696]
[1742733227046,14.13024087,2014.8,2014.6,0.10577696]
[1742733227683,9.16677087,2014.8,2014.6,0.10577696]
[1742733228765,4.20343087,2014.8,2014.6,0.10577696]
[1742733228977,9.16678087,2014.8,2014.6,0.10577696]
[1742733229137,4.20343087,2014.8,2014.6,0.10577696]
[1742733229478,9.16681087,2014.8,2014.6,0.10577696]
[1742733232184,8.39851087,2014.8,2014.6,0.10577696]
[1742733233480,13.36198087,2014.8,2014.6,0.10577696]
[1742733233680,8.39851087,2014.8,2014.6,0.10577696]
[1742733234183,3.43513087,2014.8,2014.6,5.06940696]
[1742733234683,3.0,2015.1,2014.6,5.1190289]
[1742733234874,3.0,2015.1,2014.7,5.76849]
[1742733235269,7.96266,2015.1,2014.8,0.10362898]
[1742733235588,4.96286,2015.0,2014.9,4.641]
[1742733235943,4.96286,2015.0,2014.9,4.74435356]
[1742733236389,4.96286,2015.0,2014.9,0.10335356]
[1742733236618,4.96331,2014.8,2014.6,4.641]
[1742733236919,4.96331,2014.8,2014.7,0.1038503]
[1742733240121,8.39828087,2014.9,2014.7,0.1038503]
[1742733240414,13.36149087,2014.9,2014.7,0.1038503]
[1742733240779,13.36146087,2014.9,2014.7,0.1038503]
[1742733241079,8.39828087,2014.9,2014.7,0.1038503]
[1742733241417,8.39827087,2014.9,2014.7,0.1038503]
[1742733241839,3.43513087,2014.9,2014.7,0.1038503]
[1742733242337,8.39817087,2014.9,2014.7,0.1038503]
[1742733242700,4.96327,2014.8,2014.7,0.1038503]
[1742733244243,8.39800087,2015.0,2014.7,0.1038503]
[1742733244615,4.96327,2014.8,2014.7,0.1038503]
[1742733244814,5.76467,2014.8,2014.7,0.1038503]
[1742733246443,6.81837513,2014.8,2014.7,0.1038503]
[1742733246645,9.81837513,2014.8,2014.7,0.1038503]
[1742733246815,4.96395,2014.6,2014.3,4.641]
[1742733247016,4.96395,2014.6,2014.4,0.11528069]
[1742733248145,4.96401,2014.5,2014.4,0.11528069]
[1742733248332,4.96395,2014.6,2014.4,0.11528069]
[1742733248648,9.92792,2014.6,2014.4,0.11528069]
[1742733249618,4.96401,2014.5,2014.4,0.11528069]
[1742733251346,9.92823,2014.5,2014.2,31.6489]
[1742733251535,9.92823,2014.5,2014.4,0.11618997]
[1742733251739,9.92823,2014.5,2014.2,31.6489]
[1742733251926,9.92823,2014.5,2014.4,0.11618997]
[1742733252126,9.92823,2014.5,2014.2,31.6489]
[1742733252517,4.9645,2014.3,2014.2,26.247]
[1742733253921,4.9645,2014.3,2014.2,26.36378635]
[1742733255559,9.92876,2014.4,2014.2,26.36378635]
[1742733255730,9.92869,2014.4,2014.2,26.36378635]
[1742733256064,13.36382087,2014.4,2014.2,26.36378635]
[1742733257771,4.9645,2014.3,2014.2,26.36378635]
[1742733259473,3.43513087,2014.4,2014.2,26.36378635]
[1742733259676,3.43513087,2014.4,2014.3,0.7938]
[1742733260176,3.43513087,2014.4,2014.3,5.87527532]
[1742733260472,3.43513087,2014.4,2014.3,0.91077532]
[1742733261881,4.96385,2014.6,2014.3,0.91077532]
[1742733262177,9.92779,2014.6,2014.4,4.641]
[1742733262474,7.96385,2014.6,2014.5,0.116379]
[1742733263085,8.39866087,2014.7,2014.5,0.116379]
[1742733263267,13.36233087,2014.7,2014.5,0.116379]
[1742733263442,3.43513087,2014.7,2014.5,0.116379]
[1742733263647,8.39865087,2014.7,2014.5,0.116379]
[1742733264155,13.36236087,2014.7,2014.5,0.116379]
[1742733264354,8.39865087,2014.7,2014.5,0.116379]
[1742733264698,13.36237087,2014.7,2014.5,0.116379]
[1742733264867,8.39865087,2014.7,2014.5,0.116379]
[1742733265263,13.36237087,2014.7,2014.5,0.116379]
[1742733267002,4.96376,2014.6,2014.5,0.116379]
[1742733269008,7.16306109,2014.6,2014.5,0.116379]
[1742733269613,10.16306109,2014.6,2014.5,0.116379]
[1742733269907,4.96447,2014.4,2014.2,26.247]
[1742733270109,4.9645,2014.3,2014.2,26.247]
[1742733271007,5.7491,2014.3,2014.2,26.247]
[1742733271162,10.25558787,2014.3,2014.2,26.247]
[1742733279751,4.96524,2014.0,2013.9,4.641]
[1742733281149,9.93119,2013.9,2013.7,4.641]
[1742733281706,4.96548,2013.9,2013.7,4.641]
[1742733282649,4.96548,2013.9,2013.6,31.6966]
[1742733283149,4.96524,2014.0,2013.6,31.6966]
[1742733283658,4.96524,2014.0,2013.7,0.12102083]
[1742733283860,4.96524,2014.0,2013.6,31.6966]
[1742733284015,4.96524,2014.0,2013.7,0.12102083]
[1742733284351,4.96554,2013.9,2013.6,31.6966]
[1742733284524,4.96554,2013.9,2013.8,0.12072247]
[1742733285150,4.96554,2013.9,2013.6,31.6966]
[1742733285442,4.96554,2013.9,2013.7,0.12102083]
[1742733285646,4.96554,2013.9,2013.6,31.6966]
[1742733285806,4.96554,2013.9,2013.7,0.12102083]
[1742733286243,4.96554,2013.9,2013.6,31.6966]
[1742733286447,4.96554,2013.9,2013.7,0.12102083]
[1742733286623,4.96554,2013.9,2013.6,31.6966]
[1742733286822,4.96554,2013.9,2013.7,0.12102083]
[1742733287048,4.96554,2013.9,2013.6,31.6966]
[1742733287368,4.96554,2013.9,2013.7,0.12102083]
[1742733287670,4.96554,2013.9,2013.6,31.6966]
[1742733287820,4.96554,2013.9,2013.7,0.12102083]
[1742733288012,4.96554,2013.9,2013.6,31.6966]
[1742733288214,4.96554,2013.9,2013.7,0.12102083]
[1742733288568,4.96554,2013.9,2013.6,31.6966]
[1742733288713,4.96532,2014.0,2013.8,0.12072247]
[1742733288906,4.96532,2014.0,2013.7,0.12102083]
[1742733289145,4.96532,2014.0,2013.9,0.12042414]
[1742733289355,4.96532,2014.0,2013.8,0.12072247]
[1742733289565,3.43513087,2014.1,2013.8,0.12072247]
[1742733289566,3.43513087,2014.1,2013.9,0.12042414]
[1742733289717,8.40014087,2014.1,2013.9,0.12042414]
[1742733289920,8.40014087,2014.1,2013.8,0.8015]
[1742733290124,11.40014087,2014.1,2014.0,0.12054825]
[1742733290516,11.40014087,2014.1,2013.8,0.8015]
[1742733290815,11.40014087,2014.1,2013.9,0.12094408]
[1742733291018,11.40014087,2014.1,2013.8,0.8015]
[1742733291244,11.40014087,2014.1,2013.9,0.12094408]
[1742733291444,3.43513087,2014.1,2013.9,4.9654]
[1742733291631,3.43513087,2014.1,2014.0,0.1205483]
[1742733292452,3.43513087,2014.1,2013.8,5.76705]
[1742733292652,3.43513087,2014.1,2013.9,0.1208466]
[1742733292950,3.43513087,2014.1,2013.8,5.76705]
[1742733293163,3.43513087,2014.1,2014.0,0.1205483]
[1742733293331,3.43513087,2014.1,2013.9,0.1208466]
[1742733293533,3.43513087,2014.1,2014.0,0.1205483]
[1742733293864,3.43513087,2014.1,2013.8,5.76705]
[1742733294065,3.43513087,2014.1,2013.9,0.1208466]
[1742733294233,3.43513087,2014.1,2013.8,5.76705]
[1742733294433,3.43513087,2014.1,2013.9,0.1208466]
[1742733294761,3.43513087,2014.1,2014.0,4.642]
[1742733295068,3.43513087,2014.1,2014.0,4.7625483]
[1742733296933,3.43513087,2014.1,2014.0,5.5640483]
[1742733297132,3.43513087,2014.3,2014.0,5.5640483]
[1742733298378,3.43513087,2014.3,2014.0,10.5292283]
[1742733300037,3.43513087,2014.3,2014.0,5.5640483]
[1742733300776,3.43513087,2014.3,2014.0,4.7625483]
[1742733300938,0.8017,2014.2,2014.0,4.7625483]
[1742733301137,5.76657,2014.2,2014.0,4.7625483]
[1742733301977,4.96499,2014.1,2014.0,0.1205483]
[1742733302179,6.38165909,2014.1,2014.0,0.1205483]
[1742733302379,6.38165909,2014.1,2013.8,26.255]
[1742733302380,4.96539,2014.0,2013.8,26.255]
[1742733302885,4.96548,2013.9,2013.8,26.255]
[1742733305265,4.96622,2013.6,2013.5,0.003718]
[1742733305464,6.040223,2013.6,2013.5,0.003718]
[1742733305670,6.847923,2013.6,2013.5,0.003718]
[1742733308743,13.28305387,2013.6,2013.5,0.003718]
[1742733312660,14.27933299,2013.6,2013.5,0.003718]
[1742733313694,14.27933299,2013.6,2013.5,0.10666402]
[1742733317686,6.43513087,2013.6,2013.5,0.10666402]
[1742733322358,12.17975087,2013.6,2013.5,0.10666402]
[1742733350139,12.07975087,2013.6,2013.5,0.10666402]
[1742733356883,11.30135087,2013.6,2013.5,0.10666402]
[1742733357028,6.33513087,2013.6,2013.5,0.87806402]
[1742733357336,6.33513087,2013.6,2013.5,0.88063718]
[1742733359414,3.43513087,2013.6,2013.5,5.84710718]
[1742733360433,3.43513087,2013.6,2013.5,0.88063718]
[1742733361611,8.40087087,2013.8,2013.5,0.88063718]
[1742733362052,3.43513087,2013.8,2013.5,0.88063718]
[1742733362251,3.43513087,2013.9,2013.6,0.7604]
[1742733362574,3.43513087,2013.9,2013.7,0.10401949]
[1742733363067,3.43513087,2013.9,2013.6,0.7604]
[1742733363245,6.43513087,2013.9,2013.8,0.10377086]
[1742733363866,6.43513087,2013.9,2013.6,0.7604]
[1742733364045,6.43513087,2013.9,2013.8,0.10377086]
[1742733364432,6.43513087,2013.9,2013.6,0.7604]
[1742733364635,6.43513087,2013.9,2013.8,0.10377086]
[1742733364864,6.43513087,2013.9,2013.7,0.10401949]
[1742733365074,6.43513087,2013.9,2013.8,0.10377086]
[1742733365363,6.43513087,2013.9,2013.6,0.7604]
[1742733365569,6.43513087,2013.9,2013.8,0.10377086]
[1742733365880,6.43513087,2013.9,2013.8,0.7604]
[1742733366039,6.43513087,2013.9,2013.8,0.86417086]
[1742733366898,3.43513087,2014.4,2013.9,5.72571]
[1742733367038,3.43513087,2014.4,2014.1,0.7604]
[1742733367241,3.43513087,2014.6,2014.2,0.7604]
[1742733367549,3.85495473,2014.7,2014.6,4.96376]
[1742733367550,1.11107269,2014.7,2014.6,4.96376]
[1742733367755,3.43513087,2015.0,2014.7,5.72373]
[1742733368260,3.43513087,2015.0,2014.8,0.10101508]
[1742733368576,3.43513087,2015.0,2014.9,0.7604]
[1742733369058,3.43513087,2015.0,2014.9,0.88132006]
[1742733372009,5.94068349,2015.4,2014.9,5.84434006]
[1742733372010,3.43513087,2015.4,2014.9,5.84434006]
[1742733372178,3.43513087,2015.4,2015.0,4.641]
[1742733372379,4.96264,2015.1,2014.9,0.88132006]
[1742733372580,4.96264,2015.1,2014.9,4.641]
[1742733372792,4.96231,2015.2,2014.9,4.641]
[1742733373096,3.0,2015.2,2014.9,4.641]
[1742733373401,3.43513087,2015.4,2015.0,0.7604]
[1742733373700,3.43513087,2015.4,2015.1,0.11181258]
[1742733374699,8.39697087,2015.4,2015.1,0.11181258]
[1742733375081,3.43513087,2015.4,2015.1,0.11181258]
[1742733379603,3.43513087,2015.4,2015.1,5.07425258]
[1742733379916,3.43513087,2015.4,2015.1,10.03666258]
[1742733380219,3.43513087,2015.4,2015.2,5.82949912]
[1742733380372,3.43513087,2015.8,2015.4,4.96178]
[1742733380574,0.7907,2015.7,2015.3,4.77802091]
[1742733380792,4.96165,2015.5,2015.3,4.639]
[1742733381011,4.96179,2015.4,2015.3,4.77802091]
[1742733381214,4.96165,2015.5,2015.3,4.77802091]
[1742733381887,5.7519,2015.7,2015.3,4.77802091]
[1742733382218,4.9612,2015.7,2015.3,4.77802091]
[1742733382402,8.39596087,2015.8,2015.4,0.8176]
[1742733382705,3.43513087,2015.8,2015.4,5.77937]
[1742733383705,8.39594087,2015.8,2015.4,0.8176]
[1742733384197,4.96115,2015.7,2015.4,0.8176]
[1742733384594,5.75185,2015.7,2015.3,10.43159]
[1742733384913,8.39594087,2015.8,2015.3,10.43153]
[1742733385094,8.39594087,2015.8,2015.3,10.43152]
[1742733385703,4.96109,2015.7,2015.3,10.43152]
[1742733386410,4.96214,2015.3,2014.7,0.8176]
[1742733386590,3.43513087,2015.3,2014.9,4.96294]
[1742733386790,8.39718087,2015.3,2014.8,5.1026631]
[1742733387033,8.39718087,2015.3,2015.0,0.13871806]
[1742733387237,8.39718087,2015.3,2014.9,0.95669056]
[1742733387439,8.39718087,2015.3,2015.0,0.13871806]
[1742733387732,4.96238,2015.2,2015.0,0.13871806]
[1742733388237,4.96253,2015.1,2015.0,0.13871806]
[1742733388415,4.96253,2015.1,2014.6,10.44828]
[1742733388624,4.96253,2015.1,2015.0,0.13871806]
[1742733388834,4.96287,2015.0,2014.6,5.78128]
[1742733389040,4.96307,2014.9,2014.6,0.8176]
[1742733389625,4.96331,2014.8,2014.4,31.20615]
[1742733389936,4.96308,2014.9,2014.5,9.638]
[1742733390345,4.96279,2015.0,2014.5,9.63783]
[1742733390346,4.96285,2015.0,2014.5,9.63783]
[1742733391242,4.96285,2015.0,2014.6,4.96372]
[1742733392847,4.96285,2015.0,2014.5,9.63793]
[1742733392848,9.92582,2015.0,2014.5,9.63793]
[1742733393051,4.96303,2014.9,2014.5,9.63793]
[1742733393286,4.96303,2014.9,2014.5,4.674]
[1742733393442,4.96346,2014.8,2014.4,27.0596]
[1742733393642,4.96361,2014.7,2014.4,27.0596]
[1742733393956,9.92735,2014.7,2014.4,27.0596]
[1742733394271,4.96361,2014.7,2014.4,26.242]
[1742733394410,9.92734,2014.7,2014.4,26.242]